[Event "*** Titled Tuesday Blitz"]
[Site "Chess.com"]
[Date "2021.03.02"]
[Round "8"]
[White "anskam"]
[Black "GMJustin"]
[Result "0-1"]
[WhiteElo "1777"]
[BlackElo "2245"]
[TimeControl "180+1"]
[EndTime "11:30:55 PST"]
[Termination "GMJustin won by checkmate"]

1. e4 {[%clk 0:02:59.1]} 1... c5 {[%clk 0:02:57.5]} 2. Nf3 {[%clk 0:02:58.4]}
2... d6 {[%clk 0:02:56.6]} 3. d4 {[%clk 0:02:58.5]} 3... cxd4 {[%clk 0:02:56]}
4. Nxd4 {[%clk 0:02:58.9]} 4... Nf6 {[%clk 0:02:55.7]} 5. Nc3 {[%clk 0:02:58.4]}
5... Nc6 {[%clk 0:02:55.1]} 6. Be3 {[%clk 0:02:56.1]} 6... Ng4 {[%clk
0:02:49.4]} 7. Nxc6 {[%clk 0:02:54.4]} 7... bxc6 {[%clk 0:02:44.9]} 8. Bd2
{[%clk 0:02:52]} 8... Qb6 {[%clk 0:02:32.8]} 9. Qe2 {[%clk 0:02:50.7]} 9... Qxb2
{[%clk 0:02:13.3]} 10. Rc1 {[%clk 0:02:47.5]} 10... g6 {[%clk 0:02:00.2]} 11. f3
{[%clk 0:02:45.3]} 11... Nf6 {[%clk 0:01:45.5]} 12. Qc4 {[%clk 0:02:43.2]} 12...
Qb6 {[%clk 0:01:36.3]} 13. Rb1 {[%clk 0:02:39.1]} 13... Qc7 {[%clk 0:01:11.8]}
14. Nb5 {[%clk 0:02:35.8]} 14... Qd7 {[%clk 0:01:11]} 15. Nd4 {[%clk 0:02:30.3]}
15... c5 {[%clk 0:00:43.1]} 16. Qb3 {[%clk 0:02:10.2]} 16... a6 {[%clk
0:00:38.9]} 17. Ne2 {[%clk 0:02:03.7]} 17... Bg7 {[%clk 0:00:36.8]} 18. Ng3
{[%clk 0:02:01.6]} 18... O-O {[%clk 0:00:35.5]} 19. Bc4 {[%clk 0:02:00.6]} 19...
e6 {[%clk 0:00:30.9]} 20. O-O {[%clk 0:01:59.2]} 20... d5 {[%clk 0:00:30.6]} 21.
exd5 {[%clk 0:01:56.3]} 21... exd5 {[%clk 0:00:30.5]} 22. Be2 {[%clk 0:01:53.3]}
22... c4 {[%clk 0:00:28.5]} 23. Qa3 {[%clk 0:01:48.7]} 23... Qc6 {[%clk
0:00:21.7]} 24. Rfd1 {[%clk 0:01:44.4]} 24... Be6 {[%clk 0:00:20.6]} 25. Be3
{[%clk 0:01:41.4]} 25... Rfb8 {[%clk 0:00:17.8]} 26. Bf2 {[%clk 0:01:39.5]}
26... Nd7 {[%clk 0:00:15.4]} 27. h3 {[%clk 0:01:33.9]} 27... Bf8 {[%clk
0:00:14.8]} 28. Qe3 {[%clk 0:01:30.7]} 28... Bc5 {[%clk 0:00:13.1]} 29. Qf4
{[%clk 0:01:22.4]} 29... Bxf2+ {[%clk 0:00:12.6]} 30. Kxf2 {[%clk 0:01:21.6]}
30... Qc5+ {[%clk 0:00:12.8]} 31. Qe3 {[%clk 0:01:17.9]} 31... Qxe3+ {[%clk
0:00:04.7]} 32. Kxe3 {[%clk 0:01:16.8]} 32... Kf8 {[%clk 0:00:05]} 33. Kf2
{[%clk 0:01:16.2]} 33... Ke7 {[%clk 0:00:05.1]} 34. a4 {[%clk 0:01:12]} 34...
Nc5 {[%clk 0:00:05.2]} 35. a5 {[%clk 0:01:08.8]} 35... Na4 {[%clk 0:00:05.5]}
36. Nf1 {[%clk 0:00:59.3]} 36... Nc3 {[%clk 0:00:05.6]} 37. Rxb8 {[%clk
0:00:58.1]} 37... Nxd1+ {[%clk 0:00:06]} 38. Bxd1 {[%clk 0:00:55.2]} 38... Rxb8
{[%clk 0:00:06.7]} 39. Ke1 {[%clk 0:00:54.9]} 39... Rb5 {[%clk 0:00:06.6]} 40.
Kd2 {[%clk 0:00:52.5]} 40... Rxa5 {[%clk 0:00:06.6]} 41. Ne3 {[%clk 0:00:51.8]}
41... Kd6 {[%clk 0:00:06.3]} 42. g4 {[%clk 0:00:51.3]} 42... Kc5 {[%clk
0:00:06.5]} 43. f4 {[%clk 0:00:50.9]} 43... d4 {[%clk 0:00:06.5]} 44. Ng2 {[%clk
0:00:47.7]} 44... Ra3 {[%clk 0:00:06.4]} 45. h4 {[%clk 0:00:45.9]} 45... Rg3
{[%clk 0:00:06.1]} 46. Ne1 {[%clk 0:00:44.1]} 46... c3+ {[%clk 0:00:06.3]} 47.
Ke2 {[%clk 0:00:41.9]} 47... Bxg4+ {[%clk 0:00:05.7]} 48. Kf2 {[%clk 0:00:37.7]}
48... Bxd1 {[%clk 0:00:05.5]} 49. Kxg3 {[%clk 0:00:36.6]} 49... a5 {[%clk
0:00:05.3]} 50. Nd3+ {[%clk 0:00:33.5]} 50... Kd5 {[%clk 0:00:04.6]} 51. Ne1
{[%clk 0:00:31.7]} 51... a4 {[%clk 0:00:04.5]} 52. Kf2 {[%clk 0:00:29.7]} 52...
a3 {[%clk 0:00:04.4]} 53. Nd3 {[%clk 0:00:28.1]} 53... Bxc2 {[%clk 0:00:04.6]}
54. Nb4+ {[%clk 0:00:27.5]} 54... Kc4 {[%clk 0:00:04.6]} 55. Nxc2 {[%clk
0:00:26.9]} 55... a2 {[%clk 0:00:04.9]} 56. Ke2 {[%clk 0:00:25.1]} 56... d3+
{[%clk 0:00:05]} 57. Kd1 {[%clk 0:00:23.2]} 57... dxc2+ {[%clk 0:00:05.4]} 58.
Kxc2 {[%clk 0:00:22.8]} 58... a1=Q {[%clk 0:00:05.7]} 59. h5 {[%clk 0:00:18.7]}
59... Qb2+ {[%clk 0:00:05.9]} 60. Kd1 {[%clk 0:00:16.6]} 60... Qd2# {[%clk
0:00:06.8]} 0-1

[Event "*** Titled Tuesday Blitz"]
[Site "Chess.com"]
[Date "2021.03.02"]
[Round "8"]
[White "ARTHURMOTIVATOR"]
[Black "Ze-Pequeno"]
[Result "0-1"]
[WhiteElo "2320"]
[BlackElo "2228"]
[TimeControl "180+1"]
[EndTime "11:30:57 PST"]
[Termination "Ze-Pequeno won on time"]

1. e4 {[%clk 0:03:00.9]} 1... c5 {[%clk 0:02:57.5]} 2. Nf3 {[%clk 0:02:58.7]}
2... d6 {[%clk 0:02:57.6]} 3. d4 {[%clk 0:02:58.2]} 3... cxd4 {[%clk 0:02:58.5]}
4. Nxd4 {[%clk 0:02:58.7]} 4... Nf6 {[%clk 0:02:59.2]} 5. Nc3 {[%clk 0:02:59.3]}
5... a6 {[%clk 0:02:59.3]} 6. h3 {[%clk 0:02:57.8]} 6... e6 {[%clk 0:02:58.5]}
7. g4 {[%clk 0:02:56.4]} 7... Be7 {[%clk 0:02:57.2]} 8. Bg2 {[%clk 0:02:56.8]}
8... Nfd7 {[%clk 0:02:56.9]} 9. O-O {[%clk 0:02:54.6]} 9... b5 {[%clk
0:02:56.3]} 10. Re1 {[%clk 0:02:42.9]} 10... O-O {[%clk 0:02:51.5]} 11. a4
{[%clk 0:02:26.1]} 11... b4 {[%clk 0:02:42.4]} 12. Nce2 {[%clk 0:01:58.2]} 12...
Bb7 {[%clk 0:02:09.6]} 13. Ng3 {[%clk 0:01:56.7]} 13... Nc6 {[%clk 0:02:01]} 14.
Nh5 {[%clk 0:01:51.2]} 14... Nxd4 {[%clk 0:01:45.4]} 15. Qxd4 {[%clk 0:01:48.7]}
15... e5 {[%clk 0:01:45.5]} 16. Qxb4 {[%clk 0:01:45.5]} 16... Rb8 {[%clk
0:01:45.7]} 17. Qd2 {[%clk 0:01:40.5]} 17... Nc5 {[%clk 0:01:29.3]} 18. Ra3
{[%clk 0:01:28.6]} 18... a5 {[%clk 0:01:26.7]} 19. g5 {[%clk 0:01:21.1]} 19...
Kh8 {[%clk 0:01:06.8]} 20. Ng3 {[%clk 0:01:10.5]} 20... g6 {[%clk 0:01:03.2]}
21. f4 {[%clk 0:01:05.9]} 21... exf4 {[%clk 0:01:01]} 22. Qxf4 {[%clk
0:00:58.4]} 22... Ne6 {[%clk 0:01:00.7]} 23. Qg4 {[%clk 0:00:53.5]} 23... Bxg5
{[%clk 0:00:58]} 24. Bxg5 {[%clk 0:00:43.7]} 24... Qxg5 {[%clk 0:00:56.4]} 25.
Qxg5 {[%clk 0:00:42.2]} 25... Nxg5 {[%clk 0:00:57.3]} 26. Rd3 {[%clk 0:00:42.7]}
26... Rfd8 {[%clk 0:00:32.3]} 27. Red1 {[%clk 0:00:41.4]} 27... Bc8 {[%clk
0:00:30.4]} 28. b3 {[%clk 0:00:38.2]} 28... Nxh3+ {[%clk 0:00:27.6]} 29. Bxh3
{[%clk 0:00:34.5]} 29... Bxh3 {[%clk 0:00:26.8]} 30. Rxd6 {[%clk 0:00:34.3]}
30... Rxd6 {[%clk 0:00:27.1]} 31. Rxd6 {[%clk 0:00:34.6]} 31... Rc8 {[%clk
0:00:26.9]} 32. Rd2 {[%clk 0:00:28.2]} 32... Kg7 {[%clk 0:00:25.8]} 33. Kf2
{[%clk 0:00:28]} 33... h5 {[%clk 0:00:24.1]} 34. Ne2 {[%clk 0:00:26.9]} 34... g5
{[%clk 0:00:20.2]} 35. Kg3 {[%clk 0:00:25.8]} 35... Be6 {[%clk 0:00:19.5]} 36.
Nd4 {[%clk 0:00:25.2]} 36... Bd7 {[%clk 0:00:18.5]} 37. c4 {[%clk 0:00:21.8]}
37... Rb8 {[%clk 0:00:18]} 38. Nb5 {[%clk 0:00:21.9]} 38... Rb7 {[%clk
0:00:18.4]} 39. Rd5 {[%clk 0:00:20.3]} 39... f6 {[%clk 0:00:17.4]} 40. Kf2
{[%clk 0:00:16.5]} 40... h4 {[%clk 0:00:17.2]} 41. Rd3 {[%clk 0:00:14.8]} 41...
Kg6 {[%clk 0:00:17]} 42. Nd6 {[%clk 0:00:14.7]} 42... Rb6 {[%clk 0:00:16.8]} 43.
c5 {[%clk 0:00:14.4]} 43... Rc6 {[%clk 0:00:15.8]} 44. Nb7 {[%clk 0:00:13.2]}
44... Be6 {[%clk 0:00:15.7]} 45. Rc3 {[%clk 0:00:10.5]} 45... f5 {[%clk
0:00:13.5]} 46. Nxa5 {[%clk 0:00:10.4]} 46... Rc7 {[%clk 0:00:12.7]} 47. exf5+
{[%clk 0:00:10.5]} 47... Kxf5 {[%clk 0:00:13.2]} 48. c6 {[%clk 0:00:10.2]} 48...
g4 {[%clk 0:00:13.4]} 49. b4 {[%clk 0:00:09.5]} 49... g3+ {[%clk 0:00:14.3]} 50.
Kg1 {[%clk 0:00:07.8]} 50... Kf4 {[%clk 0:00:13.4]} 51. b5 {[%clk 0:00:06.2]}
51... h3 {[%clk 0:00:11.5]} 52. Rc2 {[%clk 0:00:03.7]} 52... h2+ {[%clk
0:00:12.4]} 53. Rxh2 {[%clk 0:00:03.3]} 53... gxh2+ {[%clk 0:00:12.2]} 54. Kxh2
{[%clk 0:00:04.2]} 54... Rh7+ {[%clk 0:00:10.1]} 55. Kg1 {[%clk 0:00:02.9]}
55... Ke5 {[%clk 0:00:11]} 56. b6 {[%clk 0:00:02.2]} 56... Kd6 {[%clk 0:00:10]}
0-1

[Event "*** Titled Tuesday Blitz"]
[Site "Chess.com"]
[Date "2021.03.02"]
[Round "8"]
[White "Supernotar"]
[Black "GelmanAlexander"]
[Result "0-1"]
[WhiteElo "2677"]
[BlackElo "2568"]
[TimeControl "180+1"]
[EndTime "11:30:59 PST"]
[Termination "GelmanAlexander won by checkmate"]

1. d4 {[%clk 0:03:00.9]} 1... Nf6 {[%clk 0:02:59.7]} 2. c4 {[%clk 0:03:00.9]}
2... c5 {[%clk 0:02:59.6]} 3. Nf3 {[%clk 0:03:00.3]} 3... cxd4 {[%clk
0:02:59.4]} 4. Nxd4 {[%clk 0:03:00.2]} 4... b6 {[%clk 0:03:00]} 5. Nc3 {[%clk
0:02:50]} 5... Bb7 {[%clk 0:03:00.5]} 6. f3 {[%clk 0:02:33.9]} 6... d6 {[%clk
0:03:00.7]} 7. e4 {[%clk 0:02:32.9]} 7... Nbd7 {[%clk 0:03:01.3]} 8. Be3 {[%clk
0:02:33]} 8... a6 {[%clk 0:03:01.8]} 9. Qd2 {[%clk 0:02:32.9]} 9... e6 {[%clk
0:03:02.4]} 10. b3 {[%clk 0:02:32.9]} 10... Rc8 {[%clk 0:03:02.4]} 11. Be2
{[%clk 0:02:31.1]} 11... h6 {[%clk 0:03:01.6]} 12. O-O {[%clk 0:02:30.7]} 12...
g5 {[%clk 0:03:01.4]} 13. Kh1 {[%clk 0:02:29.9]} 13... Rg8 {[%clk 0:03:01.4]}
14. Rac1 {[%clk 0:02:23.1]} 14... Be7 {[%clk 0:02:45.3]} 15. Bd3 {[%clk
0:02:17.9]} 15... Ne5 {[%clk 0:02:45.1]} 16. Bb1 {[%clk 0:02:15]} 16... Nfd7
{[%clk 0:02:44.5]} 17. Nce2 {[%clk 0:02:09.5]} 17... h5 {[%clk 0:02:33.6]} 18.
f4 {[%clk 0:02:02.4]} 18... gxf4 {[%clk 0:02:25.4]} 19. Nxf4 {[%clk 0:02:03.3]}
19... Nc5 {[%clk 0:02:15.4]} 20. Qe2 {[%clk 0:01:55.5]} 20... Nxe4 {[%clk
0:02:01.4]} 21. Nfxe6 {[%clk 0:01:32.2]} 21... Qd7 {[%clk 0:00:57.3]} 22. Qxh5
{[%clk 0:01:31.5]} 22... Nf6 {[%clk 0:00:50]} 23. Rxf6 {[%clk 0:00:56.6]} 23...
Bxg2+ {[%clk 0:00:36]} 24. Kg1 {[%clk 0:00:56.5]} 24... Bxf6 {[%clk 0:00:30.7]}
25. Qh7 {[%clk 0:00:45]} 25... Ke7 {[%clk 0:00:27.2]} 26. Nf5+ {[%clk
0:00:17.5]} 26... Kxe6 {[%clk 0:00:27.3]} 27. Nd4+ {[%clk 0:00:16.1]} 27... Ke7
{[%clk 0:00:27.5]} 28. Nf5+ {[%clk 0:00:16.2]} 28... Qxf5 {[%clk 0:00:20.3]} 29.
Bxf5 {[%clk 0:00:15.1]} 29... Bb7+ {[%clk 0:00:14.5]} 30. Kf1 {[%clk 0:00:13.3]}
30... Rh8 {[%clk 0:00:15]} 31. Bxb6 {[%clk 0:00:09.9]} 31... Rxh7 {[%clk
0:00:14.4]} 32. Bxh7 {[%clk 0:00:10.8]} 32... Rh8 {[%clk 0:00:14.1]} 33. Bf5
{[%clk 0:00:10]} 33... Rxh2 {[%clk 0:00:14.3]} 34. Rc3 {[%clk 0:00:06.3]} 34...
Rxa2 {[%clk 0:00:13.5]} 35. b4 {[%clk 0:00:06.2]} 35... Bh4 {[%clk 0:00:11.5]}
36. Bd4 {[%clk 0:00:04.2]} 36... Bf6 {[%clk 0:00:09.8]} 37. c5 {[%clk
0:00:03.8]} 37... dxc5 {[%clk 0:00:09.6]} 38. Bxc5+ {[%clk 0:00:04.4]} 38... Ke8
{[%clk 0:00:08.9]} 39. Re3 {[%clk 0:00:04.7]} 39... Kd8 {[%clk 0:00:08.5]} 40.
Bd4 {[%clk 0:00:04.8]} 40... Nd7 {[%clk 0:00:06.9]} 41. Ba7 {[%clk 0:00:03.3]}
41... Ra1+ {[%clk 0:00:06.1]} 42. Ke2 {[%clk 0:00:02]} 42... Ra2+ {[%clk
0:00:07]} 43. Kd3 {[%clk 0:00:01.9]} 43... Bc6 {[%clk 0:00:06.7]} 44. Kc4 {[%clk
0:00:02]} 44... Bb5+ {[%clk 0:00:07.1]} 45. Kd5 {[%clk 0:00:01.8]} 45... Rd2+
{[%clk 0:00:07.8]} 46. Ke4 {[%clk 0:00:01.3]} 46... Bc6+ {[%clk 0:00:08.3]} 47.
Kf4 {[%clk 0:00:01.6]} 47... Rb2 {[%clk 0:00:08]} 48. Kg3 {[%clk 0:00:01.6]}
48... Rxb4 {[%clk 0:00:07.8]} 49. Rd3 {[%clk 0:00:02.5]} 49... Bh4+ {[%clk
0:00:07.9]} 50. Kh3 {[%clk 0:00:02]} 50... Bf6 {[%clk 0:00:08.8]} 51. Bc5 {[%clk
0:00:01.4]} 51... Rb5 {[%clk 0:00:08.3]} 52. Bd6 {[%clk 0:00:02.3]} 52... Rxf5
{[%clk 0:00:08.2]} 53. Kg4 {[%clk 0:00:03.2]} 53... Rd5 {[%clk 0:00:08.2]} 54.
Kf4 {[%clk 0:00:04.1]} 54... Rxd3 {[%clk 0:00:08.3]} 55. Be7+ {[%clk 0:00:04.2]}
55... Bxe7 {[%clk 0:00:07.4]} 56. Kg4 {[%clk 0:00:05.1]} 56... a5 {[%clk
0:00:07.9]} 57. Kh5 {[%clk 0:00:05.8]} 57... a4 {[%clk 0:00:08.4]} 58. Kh6
{[%clk 0:00:06.5]} 58... a3 {[%clk 0:00:08.8]} 59. Kg7 {[%clk 0:00:07.1]} 59...
a2 {[%clk 0:00:09]} 60. Kg8 {[%clk 0:00:05.6]} 60... a1=Q {[%clk 0:00:08.6]} 61.
Kh7 {[%clk 0:00:05.3]} 61... Qg1 {[%clk 0:00:07.8]} 62. Kh8 {[%clk 0:00:05.5]}
62... Rh3# {[%clk 0:00:07.6]} 0-1

[Event "*** Titled Tuesday Blitz"]
[Site "Chess.com"]
[Date "2021.03.02"]
[Round "8"]
[White "Fraler15"]
[Black "campomania3"]
[Result "1-0"]
[WhiteElo "2272"]
[BlackElo "2151"]
[TimeControl "180+1"]
[EndTime "11:31:04 PST"]
[Termination "Fraler15 won on time"]

1. e4 {[%clk 0:03:00.9]} 1... c6 {[%clk 0:02:59.5]} 2. d4 {[%clk 0:03:00.4]}
2... d5 {[%clk 0:02:59.7]} 3. f3 {[%clk 0:03:01.1]} 3... Qb6 {[%clk 0:02:58.7]}
4. Nc3 {[%clk 0:02:59.7]} 4... e5 {[%clk 0:02:58.8]} 5. Nge2 {[%clk 0:02:25.8]}
5... exd4 {[%clk 0:02:42.8]} 6. Nxd4 {[%clk 0:02:22.4]} 6... Bb4 {[%clk
0:02:38.1]} 7. exd5 {[%clk 0:02:06]} 7... cxd5 {[%clk 0:02:12.7]} 8. Bb5+ {[%clk
0:02:00.6]} 8... Nc6 {[%clk 0:02:07.8]} 9. O-O {[%clk 0:01:49.6]} 9... Bxc3
{[%clk 0:02:06.7]} 10. bxc3 {[%clk 0:01:48.1]} 10... Ne7 {[%clk 0:02:05.8]} 11.
Kh1 {[%clk 0:01:39.4]} 11... O-O {[%clk 0:02:05.1]} 12. Bd3 {[%clk 0:01:33.4]}
12... Ng6 {[%clk 0:01:41.1]} 13. Ba3 {[%clk 0:01:30.7]} 13... Re8 {[%clk
0:01:37.9]} 14. Re1 {[%clk 0:01:30.2]} 14... Be6 {[%clk 0:01:31.1]} 15. Nxe6
{[%clk 0:01:28.3]} 15... Rxe6 {[%clk 0:01:25]} 16. Rxe6 {[%clk 0:01:06.8]} 16...
fxe6 {[%clk 0:01:24]} 17. Bxg6 {[%clk 0:01:07.4]} 17... hxg6 {[%clk 0:01:23.3]}
18. Qd3 {[%clk 0:01:07.9]} 18... Kf7 {[%clk 0:01:17.8]} 19. Re1 {[%clk
0:01:03.7]} 19... Qf2 {[%clk 0:01:05]} 20. Rg1 {[%clk 0:00:55.4]} 20... Rh8
{[%clk 0:01:02.1]} 21. h3 {[%clk 0:00:55.5]} 21... Ne5 {[%clk 0:00:52]} 22. Qd4
{[%clk 0:00:14.6]} 22... Qg3 {[%clk 0:00:43.2]} 23. Rd1 {[%clk 0:00:05.9]} 23...
g5 {[%clk 0:00:33.2]} 24. Qd2 {[%clk 0:00:03.4]} 24... Ng6 {[%clk 0:00:22.6]}
25. Qe1 {[%clk 0:00:02.6]} 25... Qxe1+ {[%clk 0:00:16.6]} 26. Rxe1 {[%clk
0:00:03.5]} 26... Nf4 {[%clk 0:00:16.7]} 27. Kg1 {[%clk 0:00:03]} 27... g6
{[%clk 0:00:15.6]} 28. Kf2 {[%clk 0:00:03.4]} 28... Rc8 {[%clk 0:00:14.7]} 29.
Re3 {[%clk 0:00:02]} 29... a6 {[%clk 0:00:14.4]} 30. Bd6 {[%clk 0:00:02]} 30...
b5 {[%clk 0:00:13.3]} 31. Be5 {[%clk 0:00:02.7]} 31... Rc4 {[%clk 0:00:10.8]}
32. g3 {[%clk 0:00:02.8]} 32... Nxh3+ {[%clk 0:00:10.2]} 33. Kg2 {[%clk
0:00:02.5]} 33... g4 {[%clk 0:00:10.4]} 34. fxg4 {[%clk 0:00:02.4]} 34... Ng5
{[%clk 0:00:10.5]} 35. Bf4 {[%clk 0:00:02.9]} 35... Ne4 {[%clk 0:00:10.4]} 36.
Rf3 {[%clk 0:00:03.3]} 36... Ke7 {[%clk 0:00:08.4]} 37. Be5 {[%clk 0:00:03.4]}
37... a5 {[%clk 0:00:07.1]} 38. Bd4 {[%clk 0:00:03.6]} 38... a4 {[%clk
0:00:07.1]} 39. Kh3 {[%clk 0:00:02.5]} 39... Nd6 {[%clk 0:00:06]} 40. g5 {[%clk
0:00:02.5]} 40... Ne4 {[%clk 0:00:05.9]} 41. Bf6+ {[%clk 0:00:03.1]} 41... Kd6
{[%clk 0:00:05.2]} 42. Bg7 {[%clk 0:00:03.1]} 42... Ke7 {[%clk 0:00:04.6]} 43.
Bf6+ {[%clk 0:00:03.3]} 43... Kd6 {[%clk 0:00:04.8]} 44. Bg7 {[%clk 0:00:03.1]}
44... Ke7 {[%clk 0:00:05.4]} 45. Kg4 {[%clk 0:00:03.7]} 45... Kd6 {[%clk
0:00:05.7]} 46. Rf8 {[%clk 0:00:03.6]} 46... Nf6+ {[%clk 0:00:04.7]} 47. Kh3
{[%clk 0:00:02.7]} 47... Ne4 {[%clk 0:00:04.6]} 48. Rc8 {[%clk 0:00:02.5]} 48...
Nxg5+ {[%clk 0:00:03.9]} 49. Kg2 {[%clk 0:00:01.8]} 49... Ne4 {[%clk 0:00:04.2]}
50. Rxc4 {[%clk 0:00:01.5]} 50... bxc4 {[%clk 0:00:03.8]} 51. Bd4 {[%clk
0:00:02.4]} 51... a3 {[%clk 0:00:03.8]} 52. Kf3 {[%clk 0:00:03.3]} 52... Kc6
{[%clk 0:00:04.2]} 53. g4 {[%clk 0:00:03.7]} 53... Kb5 {[%clk 0:00:04.2]} 54.
Kf4 {[%clk 0:00:04.6]} 54... Kc6 {[%clk 0:00:03.1]} 55. Ke5 {[%clk 0:00:05.5]}
55... Kd7 {[%clk 0:00:03.1]} 56. Kf4 {[%clk 0:00:03.7]} 56... Ke7 {[%clk
0:00:02.7]} 57. Be5 {[%clk 0:00:02.3]} 57... g5+ {[%clk 0:00:02.2]} 58. Kf3
{[%clk 0:00:01.8]} 58... Kd7 {[%clk 0:00:02.3]} 59. Bd4 {[%clk 0:00:02.4]} 59...
Kc6 {[%clk 0:00:02.4]} 60. Be3 {[%clk 0:00:02.9]} 60... e5 {[%clk 0:00:01.3]}
61. Bc1 {[%clk 0:00:01.7]} 1-0

[Event "*** Titled Tuesday Blitz"]
[Site "Chess.com"]
[Date "2021.03.02"]
[Round "8"]
[White "MateusViageiro"]
[Black "Kislov_Oleg"]
[Result "1/2-1/2"]
[WhiteElo "2364"]
[BlackElo "2491"]
[TimeControl "180+1"]
[EndTime "11:31:18 PST"]
[Termination "Game drawn by agreement"]

1. e4 {[%clk 0:03:00.9]} 1... e6 {[%clk 0:02:57.5]} 2. d4 {[%clk 0:02:59.2]}
2... d5 {[%clk 0:02:57.8]} 3. Nd2 {[%clk 0:02:59.5]} 3... Nf6 {[%clk 0:02:57.8]}
4. e5 {[%clk 0:02:57.3]} 4... Nfd7 {[%clk 0:02:57.6]} 5. Bd3 {[%clk 0:02:55.5]}
5... c5 {[%clk 0:02:57.8]} 6. c3 {[%clk 0:02:55.7]} 6... Nc6 {[%clk 0:02:57.8]}
7. Ne2 {[%clk 0:02:55.3]} 7... cxd4 {[%clk 0:02:57.9]} 8. cxd4 {[%clk
0:02:55.2]} 8... f6 {[%clk 0:02:58.4]} 9. exf6 {[%clk 0:02:48.8]} 9... Nxf6
{[%clk 0:02:58.2]} 10. O-O {[%clk 0:02:48.9]} 10... Bd6 {[%clk 0:02:58.2]} 11.
Nf3 {[%clk 0:02:46.9]} 11... O-O {[%clk 0:02:58.7]} 12. Bf4 {[%clk 0:02:44.3]}
12... Bxf4 {[%clk 0:02:58.2]} 13. Nxf4 {[%clk 0:02:44.3]} 13... Qd6 {[%clk
0:02:55.9]} 14. Ne2 {[%clk 0:02:39.3]} 14... e5 {[%clk 0:02:55.5]} 15. dxe5
{[%clk 0:02:36.4]} 15... Nxe5 {[%clk 0:02:55.6]} 16. Nxe5 {[%clk 0:02:34.8]}
16... Qxe5 {[%clk 0:02:55.7]} 17. Qc2 {[%clk 0:02:29.7]} 17... Bg4 {[%clk
0:02:43.3]} 18. Rfe1 {[%clk 0:02:23.4]} 18... Rac8 {[%clk 0:02:39.3]} 19. Qd2
{[%clk 0:02:20.5]} 19... Kh8 {[%clk 0:02:21.1]} 20. Nc3 {[%clk 0:02:08.1]} 20...
Qd4 {[%clk 0:01:45.7]} 21. h3 {[%clk 0:02:05.8]} 21... Bf5 {[%clk 0:01:40.3]}
22. Rad1 {[%clk 0:02:04.1]} 22... Bxd3 {[%clk 0:01:23.7]} 23. Qxd3 {[%clk
0:02:04.1]} 23... Qb6 {[%clk 0:01:18.9]} 24. Re2 {[%clk 0:01:45.6]} 24... Rcd8
{[%clk 0:01:15.4]} 25. Qd4 {[%clk 0:01:42.3]} 25... Qc6 {[%clk 0:01:09.5]} 26.
Qxa7 {[%clk 0:01:36.7]} 26... b6 {[%clk 0:00:58.8]} 27. Qa4 {[%clk 0:01:33.7]}
27... Qd6 {[%clk 0:00:50]} 28. Qd4 {[%clk 0:01:30.8]} 28... h6 {[%clk
0:00:44.9]} 29. Red2 {[%clk 0:01:26.7]} 29... Rf7 {[%clk 0:00:39.7]} 30. Qh4
{[%clk 0:00:55.4]} 30... Rfd7 {[%clk 0:00:34.6]} 31. Rd4 {[%clk 0:00:48]} 31...
Qe5 {[%clk 0:00:31.3]} 32. Qf4 {[%clk 0:00:42]} 32... Qxf4 {[%clk 0:00:29.2]}
33. Rxf4 {[%clk 0:00:41.7]} 33... d4 {[%clk 0:00:29.9]} 34. Ne4 {[%clk
0:00:31.4]} 34... Nd5 {[%clk 0:00:22.7]} 35. Rf3 {[%clk 0:00:30.3]} 35... Nb4
{[%clk 0:00:21.2]} 36. a3 {[%clk 0:00:30]} 36... Na6 {[%clk 0:00:19.1]} 37. Rfd3
{[%clk 0:00:25.9]} 37... Nc5 {[%clk 0:00:18.5]} 38. Nxc5 {[%clk 0:00:25]} 38...
bxc5 {[%clk 0:00:19.4]} 39. Rc1 {[%clk 0:00:25.2]} 39... Rd5 {[%clk 0:00:17.8]}
40. b4 {[%clk 0:00:23.3]} 40... cxb4 {[%clk 0:00:15.6]} 41. axb4 {[%clk
0:00:23.8]} 41... Kg8 {[%clk 0:00:15.2]} 42. Kf1 {[%clk 0:00:20.5]} 42... Kf7
{[%clk 0:00:14.6]} 43. Ke2 {[%clk 0:00:20]} 43... Ke6 {[%clk 0:00:15.1]} 44. Kd2
{[%clk 0:00:19.8]} 44... Rb8 {[%clk 0:00:12.5]} 45. Rc4 {[%clk 0:00:16.9]} 45...
Ke5 {[%clk 0:00:13]} 46. Rg3 {[%clk 0:00:15.5]} 46... g5 {[%clk 0:00:13.2]} 47.
Kd3 {[%clk 0:00:15.2]} 47... Rdb5 {[%clk 0:00:11.5]} 48. Rxd4 {[%clk 0:00:13.4]}
48... Rxb4 {[%clk 0:00:11.8]} 49. Re3+ {[%clk 0:00:14]} 49... Kf5 {[%clk
0:00:11.1]} 50. Rf3+ {[%clk 0:00:12.6]} 50... Kg6 {[%clk 0:00:11]} 51. Rd6+
{[%clk 0:00:11.5]} 51... Kg7 {[%clk 0:00:08.9]} 52. Rd7+ {[%clk 0:00:10.8]}
52... Kg6 {[%clk 0:00:08.9]} 53. Rff7 {[%clk 0:00:07.7]} 53... Rb3+ {[%clk
0:00:08.5]} 54. Ke2 {[%clk 0:00:08.1]} 54... Rb2+ {[%clk 0:00:08.9]} 55. Ke3
{[%clk 0:00:05.5]} 55... R8b3+ {[%clk 0:00:07.6]} 56. Ke4 {[%clk 0:00:05.9]}
56... Rb4+ {[%clk 0:00:08.1]} 57. Ke3 {[%clk 0:00:06.1]} 57... R4b3+ {[%clk
0:00:08.4]} 58. Ke4 {[%clk 0:00:06.5]} 58... Re2+ {[%clk 0:00:08.5]} 59. Kd4
{[%clk 0:00:05.7]} 59... Rd2+ {[%clk 0:00:08.7]} 60. Ke4 {[%clk 0:00:05.7]}
60... Rxd7 {[%clk 0:00:08.7]} 61. Rxd7 {[%clk 0:00:06.6]} 61... Rb4+ {[%clk
0:00:08.9]} 62. Ke3 {[%clk 0:00:06.5]} 1/2-1/2